Cogmind - Beta 16.1 @@@ ROGUE MODE // 2026.04.05 @ 16:16:23 Player: ChromeKnight Result: Self-destructed Performance ------------- Evolutions (6) 3000 Regions Visited (22) 4400 Robots Destroyed (87) 435 Value Destroyed (2503) 2503 Prototype IDs (35) 700 Alien Tech Used (0) 0 Bonus (11434) 11434 TOTAL SCORE: 22472 Bonus ------- High Alert Combat Kills 87 Follower Combat Kills 6947 Hunted by Unchained 500 Network Hubs Disabled 800 Aligned with FarCom 300 Destroyed Z-Imprinter 1000 Triggered Deep Caves Wall 500 Exposed GOLEM Chamber 500 Built Enhanced Grunts 300 Met R17 at Cetus 500 Cogmind --------- Core Integrity 729/1150 Matter 160/300 Energy 344/350 System Corruption 4% Temperature Cool (0) Movement Walking (120) Location -4/Armory Parts ------- > --- POWER (2) -------- Quantum Reactor > --- PROPULSION (6) --- Enhanced Armored Leg Advanced Myomer Leg Advanced Myomer Leg Advanced Myomer Leg Advanced Myomer Leg Advanced Myomer Leg > --- UTILITY (6) ------ Large Storage Unit Improved Utility Shielding Advanced Shield Generator Improved System Shield Advanced System Shield > --- WEAPON (5) ------- 1B-0RG's Assimilator > --- INVENTORY (15) --- Quantum Reactor Thunder Leg Myomer Leg Advanced Myomer Leg Small Matter Pod (50) Long-range Sensor Array Advanced Signal Interpreter Centrium Medium Armor Plating Centrium Medium Armor Plating Centrium Medium Armor Plating Centrium Medium Armor Plating Improved System Restoration Module Mobile Refinery Mk. CCLXVII Trap Reconfigurator Plasma Cutter Peak State ------------ > --- POWER ------------ Micro Fission Core Quantum Reactor > --- PROPULSION ------- Enhanced Armored Leg Advanced Myomer Leg Advanced Myomer Leg Advanced Myomer Leg Advanced Myomer Leg Advanced Myomer Leg > --- UTILITY ---------- Large Storage Unit Improved Utility Shielding Centrium Medium Armor Plating Advanced Shield Generator Improved System Shield Advanced System Shield > --- WEAPON ----------- 1B-0RG's Assimilator > --- INVENTORY -------- Quantum Reactor Thunder Leg Myomer Leg Advanced Myomer Leg Small Matter Pod Long-range Sensor Array Advanced Signal Interpreter Centrium Medium Armor Plating Centrium Medium Armor Plating Centrium Medium Armor Plating Centrium Medium Armor Plating Improved System Restoration Module Mobile Refinery Mk. CCLXVII Trap Reconfigurator Plasma Cutter [Rating: 167] Favorites ----------- Power Quantum Reactor Engine Reinforced Deuterium Engine Power Core Micro Fission Core Reactor Quantum Reactor Propulsion Carbon-fiber Leg Treads Light Treads Leg Carbon-fiber Leg Wheel Wheel Utility Large Storage Unit Device Heat Sink Storage Large Storage Unit Processor Experimental Signal Interpreter Hackware Advanced System Shield Protection Centrium Medium Armor Plating Weapon 1B-0RG's Assimilator Energy Gun Spread Laser Ballistic Gun AWS/Gauss Ballistic Cannon Heavy Assault Cannon Launcher Advanced EMP Blaster Special Weapon Plasma Cutter Slashing Weapon Katana Special Melee Weapon 1B-0RG's Assimilator Build | -11 -10 -10 -9 -9 -9 -8 -8 -8 -8 -6 -6 -6 -6 -6 -5 -5 -5 -5 -5 -5 -4 -4 ------- Run | Yrd Mat Min Mat Min Exi Min Mat Sto Rec Fac Low Low Zio Dee Pro Fac Ext Cet Arc Hub Fac Arm Slots Evolved 12 | . . . 2 . . . 2 . . 4 . . . . . 2 . . . . 2 . Power 1 | . . . . . . . . . . 1 . . . . . . . . . . . . Propulsion 4 | . . . 1 . . . 1 . . 1 . . . . . 1 . . . . . . Utility 4 | . . . 1 . . . . . . . . . . . . 1 . . . . 2 . Weapon 3 | . . . . . . . 1 . . 2 . . . . . . . . . . . . Parts Attached 102 | 6 5 . 2 1 1 . 6 12 1 10 2 2 9 8 . 6 11 4 . . 11 5 Power 13 | 1 . . . 1 . . 1 . . 2 . . 1 1 . 2 1 2 . . 1 . Engine 4 | 1 . . . . . . 1 . . 1 . . 1 . . . . . . . . . Core 6 | . . . . 1 . . . . . 1 . . . . . 2 1 . . . 1 . Reactor 3 | . . . . . . . . . . . . . . 1 . . . 2 . . . . Propulsion 44 | 2 . . 1 . . . 4 4 1 4 1 2 . 3 . 3 6 . . . 8 5 Treads 6 | 2 . . 1 . . . 2 . . . . . . . . 1 . . . . . . Leg 36 | . . . . . . . . 4 1 4 1 2 . 3 . 2 6 . . . 8 5 Wheel 2 | . . . . . . . 2 . . . . . . . . . . . . . . . Hover . | . . . . . . . . . . . . . . . . . . . . . . . Flight . | . . . . . . . . . . . . . . . . . . . . . . . Utility 29 | 1 3 . 1 . . . . 3 . 2 . . 7 3 . 1 4 2 . . 2 . Device 10 | . . . 1 . . . . 3 . . . . 2 2 . 1 . 1 . . . . Storage 4 | 1 2 . . . . . . . . 1 . . . . . . . . . . . . Processor 5 | . 1 . . . . . . . . . . . 4 . . . . . . . . . Hackware 3 | . . . . . . . . . . . . . . . . . 2 . . . 1 . Protection 7 | . . . . . . . . . . 1 . . 1 1 . . 2 1 . . 1 . Artifact . | . . . . . . . . . . . . . . . . . . . . . . . Weapon 16 | 2 2 . . . 1 . 1 5 . 2 1 . 1 1 . . . . . . . . Energy Gun 7 | 2 2 . . . . . 1 1 . . . . . 1 . . . . . . . . Energy Cannon . | . . . . . . . . . . . . . . . . . . . . . . . Ballistic Gun 2 | . . . . . 1 . . . . 1 . . . . . . . . . . . . Ballistic Cannon 1 | . . . . . . . . 1 . . . . . . . . . . . . . . Launcher 2 | . . . . . . . . 2 . . . . . . . . . . . . . . Special Weapon 2 | . . . . . . . . 1 . . . . 1 . . . . . . . . . Impact Weapon . | . . . . . . . . . . . . . . . . . . . . . . . Slashing Weapon 1 | . . . . . . . . . . . 1 . . . . . . . . . . . Piercing Weapon . | . . . . . . . . . . . . . . . . . . . . . . . Special Melee Weapon 1 | . . . . . . . . . . 1 . . . . . . . . . . . . Unidentified Prototypes 12 | . . . . . . . . 1 . 1 . . 4 3 . . . 1 . . 2 . Parts Lost 34 | . . . . 1 . . 4 1 7 . 1 2 . 7 3 . 3 . . . 3 2 Power 8 | . . . . 1 . . 1 . 1 . 1 . . 1 1 . . . . . 1 1 Propulsion 20 | . . . . . . . 3 1 4 . . 2 . 4 2 . 3 . . . 1 . Utility 4 | . . . . . . . . . . . . . . 2 . . . . . . 1 1 Weapon 2 | . . . . . . . . . 2 . . . . . . . . . . . . . Highest Loss Streak 6 | . . . . 1 . . 3 1 6 . 1 1 . 6 2 . 2 . . . 2 2 To Critical Strikes . | . . . . . . . . . . . . . . . . . . . . . . . Average Backups 12 | . 9 12 10 12 12 14 16 22 23 11 9 7 9 8 5 8 13 14 14 14 14 15 Power . | . . . . . . . . . 1 . . . . . . . 1 1 2 2 1 1 Propulsion 4 | . 4 5 4 5 5 5 6 12 14 5 4 2 3 2 . . 2 3 3 3 3 3 Utility 5 | . 2 4 3 4 4 5 6 6 5 3 3 3 3 3 3 6 8 8 8 8 8 10 Weapon 1 | . 2 2 2 2 2 2 1 . . . 1 . 1 1 . 1 . . . . . . Tool/Special . | . . . . . . . . . . . . . . . . . . . . . . . Unused Backups 35 | . 1 . . . . . 4 . 3 4 1 . . 2 . . 1 5 . . 2 12 Power 2 | . . . . . . . . . . . . . . . . . . 1 . . . 1 Propulsion 16 | . . . . . . . 4 . 1 3 . . . 2 . . 1 . . . 2 3 Utility 14 | . . . . . . . . . 1 1 . . . . . . . 4 . . . 8 Weapon 2 | . 1 . . . . . . . 1 . . . . . . . . . . . . . Tool/Special 1 | . . . . . . . . . . . 1 . . . . . . . . . . . Average Slot Usage (%) 71 | . 98 100 99 98 94 88 84 78 70 62 58 56 60 64 42 44 74 76 76 76 77 77 Engine 3 | . 14 14 11 4 . . 2 9 9 5 1 . 1 4 . . . . . . . . Core 2 | . . . . 5 11 11 5 . . 2 6 5 . . . 3 11 3 . . . 5 Reactor 1 | . . . . . . . . . . . . . . 4 1 . . 7 11 11 9 5 Treads 7 | . 28 28 32 33 33 33 27 4 . . . . . . . 4 . . . . . . Leg 22 | . . . . . . . . 16 35 32 30 32 33 30 20 15 33 35 35 35 31 30 Device 3 | . . . 11 11 11 11 9 9 6 . . . 1 . . 1 . 3 5 5 7 5 Storage 7 | . 14 14 11 11 11 11 9 9 9 6 6 6 6 6 6 5 5 5 5 5 5 5 Processor 4 | . 12 14 11 11 11 11 9 1 . . . . 5 6 6 5 . . . . . . Hackware 2 | . . . . . . . . . . . . . . . . . 9 6 5 5 9 10 Protection 2 | . . . . . . . . . . 5 6 5 4 3 . . 3 5 5 5 6 10 Energy Gun 4 | . 28 28 22 22 11 . 7 5 . . . . . . . . . . . . . . Ballistic Gun 1 | . . . . . 5 11 9 3 . . . . . . . . . . . . . . Special Melee Weapon 3 | . . . . . . . . . . 5 4 5 5 5 5 5 5 5 5 5 5 5 Peak Build Rating 167 | 6 11 11 13 15 29 29 39 41 36 104 99 99 108 116 99 119 137 150 150 150 163 167 Average Rating 84 | 4 10 11 12 13 21 29 33 35 30 95 87 94 95 103 89 100 131 143 150 150 160 162 On Entrance 71 | . 6 11 11 13 15 29 29 38 36 12 104 98 87 105 99 84 119 132 150 150 150 159 Avg Prop Armor Cover (%) 10 | . . . . . . . 16 11 . . . 11 10 7 . 10 8 . . . . . Naked Turns . | . . . . . . . . . . . . . . . . . . . . . . . Heaviest Build 129 | 11 89 89 90 92 96 96 109 114 114 114 114 105 81 91 85 88 99 127 127 127 129 114 Greatest Support 170 | 40 40 40 60 60 60 60 80 60 60 75 78 84 84 84 73 78 135 135 135 135 144 170 Greatest Overweight (x) 9 | . 2 2 1 1 1 1 9 7 5 1 1 1 1 3 1 1 1 . . . 1 . Average Overweight (x) . | . . 2 1 1 1 1 2 2 1 . . . . . . . . . . . . . Largest Inventory Capacity 25 | 8 25 25 25 25 25 25 25 25 25 25 15 15 15 15 15 15 15 15 15 15 15 15 Average Capacity 17 | 6 19 25 25 25 25 25 25 25 25 15 15 15 15 15 15 15 15 15 15 15 15 15 Most Carried 25 | 1 12 12 12 12 14 14 25 25 25 22 15 9 15 15 11 13 15 15 14 14 15 15 Average Carried 13 | . 9 12 10 12 12 14 17 24 24 11 10 7 12 11 5 8 13 14 14 14 14 14 Final Capacity 25 | 8 25 25 25 25 25 25 25 25 25 15 15 15 15 15 15 15 15 15 15 15 15 15 Final Carried 25 | 1 12 12 12 12 14 14 24 25 23 11 9 9 15 6 6 13 14 14 14 14 15 15 Class Distribution -------------------- 42% | Mutant 33% | Scavenger-Mutant 6% | Commander-Mutant 5% | Hacker-Mutant 4% | Gunner 3% | Scavenger-Gunner Dominant Class ---------------- Mutant | -10/Materials Mutant | -10/Mines Mutant | -9/Materials Mutant | -9/Mines Mutant | -9/Exiles Mutant | -8/Mines Skirmisher | -8/Materials Scavenger-Gunner | -8/Storage Commander-Mutant | -8/Recycling Mutant | -6/Factory Mutant | -6/Lower Caves Mutant | -6/Lower Caves Scavenger-Mutant | -6/Zion Scavenger-Mutant | -6/Deep Caves Mutant | -5/Proximity Caves Mutant | -5/Factory Scavenger-Mutant | -5/Extension Commander-Mutant | -5/Cetus Commander-Mutant | -5/Archives Scavenger-Mutant | -5/Hub_04(d) Scavenger-Mutant | -4/Factory Hacker-Mutant | -4/Armory Resources | -11 -10 -10 -9 -9 -9 -8 -8 -8 -8 -6 -6 -6 -6 -6 -5 -5 -5 -5 -5 -5 -4 -4 ----------- Run | Yrd Mat Min Mat Min Exi Min Mat Sto Rec Fac Low Low Zio Dee Pro Fac Ext Cet Arc Hub Fac Arm Matter Collected 8547 | 205 105 . 20 10 . 10 60 421 106 274 446 450 320 798 453 751 596 58 . 112 1041 2311 Remotely . | . . . . . . . . . . . . . . . . . . . . . . . Salvage Created 2554 | . 265 13 79 31 . 105 1135 595 257 16 . . . . 24 . . . . . . 34 Parts 177 | . 27 . 3 9 . 9 81 34 11 2 . . . . 1 . . . . . . . Haulers Intercepted 2 | . 1 . . . . . 1 . . . . . . . . . . . . . . . Recyclers Shooed 9 | . . . 1 . . 1 4 . . 3 . . . . . . . . . . . . Parts Field Recycled . | . . . . . . . . . . . . . . . . . . . . . . . Retrieved Matter . | . . . . . . . . . . . . . . . . . . . . . . . Parts Self-Destructed 29 | . . . . . . . . . . . . 6 5 . 18 . . . . . . . Prevented 7 | . . . . . . . . . . . . 7 . . . . . . . . . . Parts Restored . | . . . . . . . . . . . . . . . . . . . . . . . Kills | -11 -10 -10 -9 -9 -9 -8 -8 -8 -8 -6 -6 -6 -6 -6 -5 -5 -5 -5 -5 -5 -4 -4 ------- Run | Yrd Mat Min Mat Min Exi Min Mat Sto Rec Fac Low Low Zio Dee Pro Fac Ext Cet Arc Hub Fac Arm Combat Hostiles Destroyed 64 | . 11 1 . 3 . 7 24 14 2 1 . . . . 1 . . . . . . . Melee 1 | . . . . . . . . . . . . . . . 1 . . . . . . . Guns 48 | . 11 1 . 3 . 7 24 1 . 1 . . . . . . . . . . . . Cannons 11 | . . . . . . . . 10 1 . . . . . . . . . . . . . AOE 4 | . . . . . . . . 3 1 . . . . . . . . . . . . . Classes Destroyed 13 | . 5 . 2 . . 1 4 . 1 . . . . . . . . . . . . . Worker 5 | . . . . . . 1 4 . . . . . . . . . . . . . . . Builder 2 | . . . . . . . . . 2 . . . . . . . . . . . . . Hauler 2 | . 1 . . . . . 1 . . . . . . . . . . . . . . . Recycler 6 | . . . 1 . . . 2 1 2 . . . . . . . . . . . . . Mechanic 1 | . . . 1 . . . . . . . . . . . . . . . . . . . Operator 1 | . 1 . . . . . . . . . . . . . . . . . . . . . Watcher 6 | . 3 . . . . . 1 1 . . . . . . . . . . . . . 1 Swarmer 34 | . 8 . . 3 . 7 11 3 . 1 . . . . 1 . . . . . . . Grunt 11 | . 3 1 . . . . 4 3 . . . . . . . . . . . . . . Sentry 13 | . . . . . . . 4 7 2 . . . . . . . . . . . . . Specialist 2 | . . . . . . . 2 . . . . . . . . . . . . . . . Hunter 3 | . . . . . . . 2 1 . . . . . . . . . . . . . . Heavy 1 | . . . . . . . 1 . . . . . . . . . . . . . . . Best Kill Streak 11 | . 4 1 1 3 . 4 11 6 3 1 . . . . 1 . . . . . . 1 Combat Bots Only 7 | . 3 1 . 3 . 4 7 5 1 1 . . . . 1 . . . . . . . Max Kills in Single Turn 3 | . 2 1 1 2 . 2 2 3 3 1 . . . . 1 . . . . . . 1 Gunslinging 1 | . 1 . . 1 . . . . . . . . . . . . . . . . . . Exploded 3 | . . . . . . . . 3 1 . . . . . . . . . . . . . Melee 1 | . . . . . . . . . . . . . . . 1 . . . . . . . Uniques/NPCs Destroyed 1 | . . . . . . . . . . . . . . 1 . . . . . . . . Z-Imprinter (-6/Deep Caves) Combat | -11 -10 -10 -9 -9 -9 -8 -8 -8 -8 -6 -6 -6 -6 -6 -5 -5 -5 -5 -5 -5 -4 -4 -------- Run | Yrd Mat Min Mat Min Exi Min Mat Sto Rec Fac Low Low Zio Dee Pro Fac Ext Cet Arc Hub Fac Arm Hostile Shots Fired 819 | . 24 8 4 9 . 10 58 42 83 77 26 39 . 53 39 11 50 2 . 14 122 148 Missed 306 | . 8 3 2 2 . 2 15 15 24 26 8 16 . 16 9 6 18 1 . 5 67 63 Hits 513 | . 16 5 2 7 . 8 43 27 59 51 18 23 . 37 30 5 32 1 . 9 55 85 Melee 8 | . . . . . . . . . . . 2 5 . . . . . . . . . 1 Projectile 505 | . 16 5 2 7 . 8 43 27 59 51 16 18 . 37 30 5 32 1 . 9 55 84 AOE 5 | . . . . 3 . . . . 1 . . . . . . . . . . . . 1 Critical Strikes 22 | . . . . 1 . . 2 . 4 3 . 1 . . . . 3 1 . . 1 6 Damage Taken 9959 | . 146 101 30 176 . 64 655 412 951 706 338 318 . 1734 445 223 839 31 12 123 1178 1477 Core 1662 | . 9 14 15 9 . 7 52 55 215 58 12 10 . 589 65 48 48 10 12 13 149 272 Absorbed by Shields 958 | . . . . . . . . . . . . . . . . . . 8 . 43 417 490 Redirected to Shielding 310 | . . . . . . . . . . . . . . 270 . . . . . . 21 19 Regen/Repaired (Parts) 1319 | . . . . . . . . . . 155 56 81 . 46 124 123 172 . . 26 157 379 Core Remaining (%) 70 | 100 . 90 . . . 92 . . 41 . . . . . 13 . . . . 86 . . Volleys Fired 129 | . 23 6 5 5 . . 16 40 15 16 . . . 3 . . . . . . . . Largest 2 | . 2 2 2 2 . . 1 1 1 1 . . . 1 . . . . . . . . Hottest 250 | . 130 130 130 130 . . 65 65 50 23 . . . 250 . . . . . . . . Shots Fired 272 | . 46 12 10 10 . 14 98 48 15 16 . . . 3 . . . . . . . . Gun 219 | . 46 12 10 10 . 14 98 10 . 16 . . . 3 . . . . . . . . Cannon 49 | . . . . . . . . 37 12 . . . . . . . . . . . . . Launcher 4 | . . . . . . . . 1 3 . . . . . . . . . . . . . Special . | . . . . . . . . . . . . . . . . . . . . . . . Kinetic 169 | . . . . . . 14 82 45 12 16 . . . . . . . . . . . . Thermal 99 | . 46 12 10 10 . . 16 2 . . . . . 3 . . . . . . . . Explosive . | . . . . . . . . . . . . . . . . . . . . . . . Electromagnetic 4 | . . . . . . . . 1 3 . . . . . . . . . . . . . Robot Hit Streak 20 | . 7 13 11 4 . 4 20 15 17 3 . . . 4 . . . . . . . . Robot Miss Streak 9 | . 9 3 3 6 . 1 5 2 1 3 . . . 3 . . . . . . . . Penetration Max 1 | . . . . . . . . 1 . . . . . . . . . . . . . . Secondary Targets 4 | . 3 . . 1 . . . . . . . . . . . . . . . . . . Max Gunslinging Chain 1 | . 1 . . 1 . . . . . . . . . . . . . . . . . . Autonomous 104 | . . . . . . 14 82 8 . . . . . . . . . . . . . . Shots Hit Robots 230 | . 40 12 9 10 . 10 86 35 12 9 . 2 . 3 2 . . . . . . . Core Hits 175 | . 49 15 8 14 . 7 53 18 6 4 . . . . 1 . . . . . . . Critical Kills . | . . . . . . . . . . . . . . . . . . . . . . . Critical Parts Destroyed 1 | . . . . . . . . 1 . . . . . . . . . . . . . . Critical Strikes 11 | . . . . . . . . 9 1 . . . . . 1 . . . . . . . Destroy 1 | . . . . . . . . 1 . . . . . . . . . . . . . . Blast 9 | . . . . . . . . 8 1 . . . . . . . . . . . . . Sever 1 | . . . . . . . . . . . . . . . 1 . . . . . . . Melee Attacks 7 | . . . . . . . . . . . 1 3 . . 3 . . . . . . . Impact . | . . . . . . . . . . . . . . . . . . . . . . . Slashing 7 | . . . . . . . . . . . 1 3 . . 3 . . . . . . . Piercing . | . . . . . . . . . . . . . . . . . . . . . . . Sneak Attacks . | . . . . . . . . . . . . . . . . . . . . . . . Combat Hostiles . | . . . . . . . . . . . . . . . . . . . . . . . Follow-up Attacks . | . . . . . . . . . . . . . . . . . . . . . . . Damage Inflicted 6603 | . 418 180 138 114 . 358 2357 1645 726 170 15 69 . 304 64 10 . . . . . 35 Guns 4128 | . 418 180 138 114 . 336 2348 204 . 125 . . . 265 . . . . . . . . Cannons 1789 | . . . . . . . . 1279 510 . . . . . . . . . . . . . Explosions 366 | . . . . . . . . 162 204 . . . . . . . . . . . . . Melee 133 | . . . . . . . . . . . . 69 . . 64 . . . . . . . Ramming 187 | . . . . . . 22 9 . 12 45 15 . . 39 . 10 . . . . . 35 Kinetic 4548 | . . . . . . 336 2126 1451 510 125 . . . . . . . . . . . . Thermal 1410 | . 418 180 138 114 . . 222 73 . . . . . 265 . . . . . . . . Explosive . | . . . . . . . . . . . . . . . . . . . . . . . Electromagnetic 325 | . . . . . . . . 121 204 . . . . . . . . . . . . . Impact . | . . . . . . . . . . . . . . . . . . . . . . . Slashing 133 | . . . . . . . . . . . . 69 . . 64 . . . . . . . Piercing . | . . . . . . . . . . . . . . . . . . . . . . . Highest Corruption 5 | . . . . . . . . . 5 . 3 3 3 . . 1 1 1 1 1 . 4 Average Corruption 1 | . . . . . . . . . 3 . 2 3 3 . . 1 1 1 1 1 . 2 Corruption Purged . | . . . . . . . . . . . . . . . . . . . . . . . Corruption Blocked . | . . . . . . . . . . . . . . . . . . . . . . . Effects 45 | . . . . . . . . . 2 . 7 6 3 . . 4 10 4 . 2 . 7 Message Errors 8 | . . . . . . . . . . . 2 1 . . . . 1 2 . 1 . 1 Matter Fused 13 | . . . . . . . . . 1 . 1 2 . . . . 5 1 . . . 3 Heat Flow Errors 8 | . . . . . . . . . . . . 2 1 . . 2 3 . . . . . Energy Discharges 5 | . . . . . . . . . . . 2 . 2 . . . . 1 . . . . Parts Rejected 3 | . . . . . . . . . 1 . . . . . . . . . . . . 2 Data Loss (minor) 6 | . . . . . . . . . . . 1 1 . . . 2 1 . . . . 1 Data Loss (major) 2 | . . . . . . . . . . . 1 . . . . . . . . 1 . . Overload Shots . | . . . . . . . . . . . . . . . . . . . . . . . Overflow Damage 77 | . . . . . . . . 32 30 . . 4 . . . . . . . . . 11 Projectiles 61 | . . . . . . . . 32 29 . . . . . . . . . . . . . Explosions 1 | . . . . . . . . . 1 . . . . . . . . . . . . . Melee 15 | . . . . . . . . . . . . 4 . . . . . . . . . 11 Knockbacks 7 | . . . . . . . . 4 1 1 . . . 1 . . . . . . . . Impact 3 | . . . . . . . . . 1 1 . . . 1 . . . . . . . . Kinetic 2 | . . . . . . . . 2 . . . . . . . . . . . . . . Secondary 2 | . . . . . . . . 2 . . . . . . . . . . . . . . Self-Inflicted Damage 50 | . . . . . . . 4 13 33 . . . . . . . . . . . . . Shots 3 | . . . . . . . . 1 2 . . . . . . . . . . . . . Rammed 2 | . . . . . . 1 1 . . . . . . . . . . . . . . . Targets Rammed 23 | . . . . . . 2 1 . 2 9 3 . . 3 . 2 . . . . . 1 Kicked 20 | . . . . . . . . . 2 9 3 . . 3 . 2 . . . . . 1 Crushed 1 | . . . . . . 1 . . . . . . . . . . . . . . . . Highest Temperature 686 | . 225 312 90 90 . . 14 4 6 6 . 269 262 686 . 259 281 . . 6 . 12 Average Temperature 113 | . 78 134 38 37 . . 5 2 3 3 . 132 115 354 . 120 120 . . 6 . 10 Received Heat Transfer 1295 | . 18 60 18 . . . 90 99 234 30 . 45 . 228 . 27 183 . . 42 69 152 Effects 12 | . . . . . . . . . . . . . . 12 . . . . . . . . Shutdowns 2 | . . . . . . . . . . . . . . 2 . . . . . . . . Interference 2 | . . . . . . . . . . . . . . 2 . . . . . . . . Short Circuit 1 | . . . . . . . . . . . . . . 1 . . . . . . . . Damage (minor) 3 | . . . . . . . . . . . . . . 3 . . . . . . . . Damage (major) 2 | . . . . . . . . . . . . . . 2 . . . . . . . . Damage (core) 2 | . . . . . . . . . . . . . . 2 . . . . . . . . Siege Activations . | . . . . . . . . . . . . . . . . . . . . . . . Martial Activations . | . . . . . . . . . . . . . . . . . . . . . . . Shielding Activations . | . . . . . . . . . . . . . . . . . . . . . . . Robots Disrupted . | . . . . . . . . . . . . . . . . . . . . . . . Combat Hostiles . | . . . . . . . . . . . . . . . . . . . . . . . Robots Corrupted 1 | . . . . . . . . . . . . . . . . . . . . . . 1 Combat Hostiles . | . . . . . . . . . . . . . . . . . . . . . . . Parts Fried 1 | . . . . . . . . . 1 . . . . . . . . . . . . . Impact Corruptions 2 | . . . . . . . . . . . . . . 1 . . . . . . . 1 Robots Melted . | . . . . . . . . . . . . . . . . . . . . . . . Combat Hostiles . | . . . . . . . . . . . . . . . . . . . . . . . Parts Melted . | . . . . . . . . . . . . . . . . . . . . . . . Heat Transferred 1965 | . 520 230 170 145 . . 280 145 . . . . . 475 . . . . . . . . Parts Sabotaged . | . . . . . . . . . . . . . . . . . . . . . . . Parts Stolen 5 | . . . . . . . . . . . 2 3 . . . . . . . . . . Parts Stripped . | . . . . . . . . . . . . . . . . . . . . . . . Power Chain Reactions 2 | . . . . . . . . 2 . . . . . . . . . . . . . . Alert | -11 -10 -10 -9 -9 -9 -8 -8 -8 -8 -6 -6 -6 -6 -6 -5 -5 -5 -5 -5 -5 -4 -4 ------- Run | Yrd Mat Min Mat Min Exi Min Mat Sto Rec Fac Low Low Zio Dee Pro Fac Ext Cet Arc Hub Fac Arm Maximum Alert Level 5 | . . . . . . . 2 1 . . . . . . . 2 1 1 1 5 4 4 Low Security (%) 75 | 100 100 100 100 100 . 100 39 78 100 100 . . . . . 85 95 97 79 12 . . Level 1 4 | . . . . . . . 16 21 . . . . . . . 2 4 2 20 7 . . Level 2 6 | . . . . . . . 43 . . . . . . . . 12 . . . 8 . 45 Level 3 11 | . . . . . . . . . . . . . . . . . . . . 36 99 38 Level 4 1 | . . . . . . . . . . . . . . . . . . . . 30 . 15 Level 5 . | . . . . . . . . . . . . . . . . . . . . 4 . . High Security . | . . . . . . . . . . . . . . . . . . . . . . . Max Security . | . . . . . . . . . . . . . . . . . . . . . . . Peak Influence 1679 | . 70 71 47 110 . 94 459 253 115 150 . . . . . 482 224 204 215 1679 1105 1247 Initial 822 | . . 17 . 7 . . 29 191 95 150 . . . . . 60 224 78 54 65 822 523 Average 219 | . 17 15 18 57 . 11 265 105 32 20 . . . . . 123 151 121 152 889 952 771 Influence Increases 9411 | . 308 131 69 110 . 175 708 552 332 266 . 229 . . 346 764 669 364 245 1794 759 1590 Destroy 0b10 Robot/C 4520 | . 220 80 20 80 . 140 480 320 160 60 . 160 . . 240 320 320 160 80 580 340 760 Destroy 0b10 Robot/NC 360 | . 25 . 20 . . 5 40 10 25 5 . . . . . 45 50 10 5 55 50 15 Destroy Leader 930 | . 48 20 14 10 . 20 124 122 . 20 . 20 . . 30 100 36 . . 126 86 154 Allied During Kill 2169 | . . 16 4 5 . . . 15 24 3 . 49 . . 61 122 207 150 85 723 128 577 Trap Triggered on 0b10 20 | . . . . . . . . . . . . . . . . 20 . . . . . . Successful Hack 59 | . . . 11 . . . 8 2 . . . . . . . 16 6 . . . . 16 Select Force Hacks 290 | . . . . . . . . . 90 . . . . . . . . . . 200 . . Disable Machine 375 | . . . . 15 . . 15 60 15 . . . . . . 105 . . 45 30 60 30 Destroy Structure 388 | . . . . . . 10 41 23 3 13 . . . . . 36 20 44 30 80 80 8 Advance Influence 150 | . . . . . . . . . . 150 . . . . . . . . . . . . Partial Spotted 15 | . . . . . . . . . . . . . . . . . . . . . 15 . Lose Combat Pursuer 135 | . 15 15 . . . . . . 15 15 . . . . 15 . 30 . . . . 30 Influence Decreases 8224 | . 263 176 50 109 20 97 332 761 577 266 . 229 . . 249 403 986 369 192 304 1369 1472 Entered New Map 2465 | . . 28 . 12 20 . 49 263 150 . . . . . . 37 234 63 82 124 857 546 Time Decay 4460 | . 263 148 50 60 . 97 243 443 296 216 . 189 . . 219 340 562 286 50 160 422 416 Lost Part 199 | . . . . 10 . . 40 10 29 . . 20 . . 10 . 30 . . . 30 20 Lost Ally 1100 | . . . . 27 . . . 45 102 50 . 20 . . 20 26 160 20 60 20 60 490 Squads Dispatched 45 | . 1 . . . . . 3 5 . 3 . . . . . 7 1 . . 11 5 9 Investigation 8 | . . . . . . . . 1 . . . . . . . 1 . . . 6 . . Extermination 12 | . . . . . . . . . . 2 . . . . . 3 . . . 1 2 4 Reinforcement 16 | . 1 . . . . . 3 2 . 1 . . . . . 3 1 . . 1 2 2 Assault 7 | . . . . . . . . 2 . . . . . . . . . . . 1 1 3 Garrison 2 | . . . . . . . . . . . . . . . . . . . . 2 . . Intercept . | . . . . . . . . . . . . . . . . . . . . . . . Searches Triggered . | . . . . . . . . . . . . . . . . . . . . . . . Unchained Authorized 1 | . . . . . . . . . . . . . . . . . . . . . 1 . Construction Impeded 2 | . . . . . . . . . . . . . . . . 2 . . . . . . Haulers Reinforced . | . . . . . . . . . . . . . . . . . . . . . . . Active Scanning Responses . | . . . . . . . . . . . . . . . . . . . . . . . Cargo Convoy Interrupts . | . . . . . . . . . . . . . . . . . . . . . . . Stealth | -11 -10 -10 -9 -9 -9 -8 -8 -8 -8 -6 -6 -6 -6 -6 -5 -5 -5 -5 -5 -5 -4 -4 --------- Run | Yrd Mat Min Mat Min Exi Min Mat Sto Rec Fac Low Low Zio Dee Pro Fac Ext Cet Arc Hub Fac Arm Distress Signals 15 | . . . . . . . 1 2 1 . . . . . . 1 1 2 . 3 2 2 Communications Jammed . | . . . . . . . . . . . . . . . . . . . . . . . Distress Signals . | . . . . . . . . . . . . . . . . . . . . . . . Times Spotted 348 | . 16 5 4 6 . 7 27 21 6 17 6 13 . 20 10 21 25 6 2 28 32 76 Peak Tracking Total 9 | . 3 2 2 4 . 3 8 5 4 4 2 3 . 3 5 2 6 5 2 7 8 9 Tactical Retreats 10 | . 1 1 . . . . . . 1 1 . . . 1 1 . 2 . . . . 2 Traps | -11 -10 -10 -9 -9 -9 -8 -8 -8 -8 -6 -6 -6 -6 -6 -5 -5 -5 -5 -5 -5 -4 -4 ------- Run | Yrd Mat Min Mat Min Exi Min Mat Sto Rec Fac Low Low Zio Dee Pro Fac Ext Cet Arc Hub Fac Arm Traps Triggered 4 | . . . . . . . . 2 . 1 . . . . . . . . . . . 1 Indirectly . | . . . . . . . . . . . . . . . . . . . . . . . Trap Hack Attempts . | . . . . . . . . . . . . . . . . . . . . . . . Triggered . | . . . . . . . . . . . . . . . . . . . . . . . Disarmed . | . . . . . . . . . . . . . . . . . . . . . . . Reprogrammed . | . . . . . . . . . . . . . . . . . . . . . . . Reused 1 | . . . . . . . . . . . . . . . . 1 . . . . . . Traps Extracted . | . . . . . . . . . . . . . . . . . . . . . . . Installed 4 | . . . . . . . . . . . . . . . . 4 . . . . . . Triggered 2 | . . . . . . . . . . . . . . . . 2 . . . . . . Machines | -11 -10 -10 -9 -9 -9 -8 -8 -8 -8 -6 -6 -6 -6 -6 -5 -5 -5 -5 -5 -5 -4 -4 ---------- Run | Yrd Mat Min Mat Min Exi Min Mat Sto Rec Fac Low Low Zio Dee Pro Fac Ext Cet Arc Hub Fac Arm Machines Disabled 30 | . . . . 1 . . 1 4 1 . 1 . 3 1 . 7 . . 3 2 4 2 Max in Single Turn 1 | . . . . . . . 1 1 1 . 1 . 1 . . . . . . . . . Network Hub 4 | . . . . . . . . . . . . . . . . . . . . 4 . . Machines Repaired . | . . . . . . . . . . . . . . . . . . . . . . . Machines Dismantled 5 | . . . . . . . . 2 . . . . 3 . . . . . . . . . Machines Sabotaged 4 | . . . . . . . . . . . . . . . . . . . . 4 . . Overloaded Fab Kills . | . . . . . . . . . . . . . . . . . . . . . . . Hacking | -11 -10 -10 -9 -9 -9 -8 -8 -8 -8 -6 -6 -6 -6 -6 -5 -5 -5 -5 -5 -5 -4 -4 --------- Run | Yrd Mat Min Mat Min Exi Min Mat Sto Rec Fac Low Low Zio Dee Pro Fac Ext Cet Arc Hub Fac Arm Machines Accessed 27 | . 1 . 2 . 1 . 1 2 3 2 1 . . . . 2 3 . . 6 2 1 Terminals 21 | . 1 . 2 . . . 1 2 . 2 . . . . . 2 3 . . 6 1 1 Fabricators . | . . . . . . . . . . . . . . . . . . . . . . . Repair Stations . | . . . . . . . . . . . . . . . . . . . . . . . Recycling Units 3 | . . . . . . . . . 3 . . . . . . . . . . . . . Scanalyzers . | . . . . . . . . . . . . . . . . . . . . . . . Garrison Access 1 | . . . . . . . . . . . . . . . . . . . . . 1 . Total Hacks 50 | . 3 . 3 . 1 . 2 3 4 4 1 . . . . 6 5 . . 11 5 2 Successful 25 | . 1 . 2 . 1 . 1 1 3 . 1 . . . . 4 3 . . 6 1 1 Failed 25 | . 2 . 1 . . . 1 2 1 4 . . . . . 2 2 . . 5 4 1 Catastrophic 5 | . 1 . . . . . . . . 1 . . . . . 1 . . . . 2 . Database Lockouts . | . . . . . . . . . . . . . . . . . . . . . . . Manual 36 | . 3 . 2 . 1 . 2 2 4 4 . . . . . 4 1 1 . 11 . 1 Terminals 40 | . 3 . 3 . . . 2 3 . 4 . . . . . 6 5 . . 11 1 2 Fabricators . | . . . . . . . . . . . . . . . . . . . . . . . Repair Stations . | . . . . . . . . . . . . . . . . . . . . . . . Recycling Units 4 | . . . . . . . . . 4 . . . . . . . . . . . . . Scanalyzers . | . . . . . . . . . . . . . . . . . . . . . . . Garrison Access 4 | . . . . . . . . . . . . . . . . . . . . . 4 . Terminal Hacks 15 | . . . 2 . 1 . 1 1 . . 1 . . . . 4 3 . . . 1 1 Record 1 | . . . . . . . . . . . . . . . . . . . . . . 1 Robot Analysis 1 | . . . 1 . . . . . . . . . . . . . . . . . . . Open Door 4 | . . . . . . . . 1 . . 1 . . . . . 2 . . . . . Branch Access Points 5 | . . . 1 . . . 1 . . . . . . . . 2 . . . . 1 . Emergency Access Points 1 | . . . . . . . . . . . . . . . . 1 . . . . . . Zone Layout 2 | . . . . . . . . . . . . . . . . 1 1 . . . . . Proto ID Catalog 1 | . . . . . 1 . . . . . . . . . . . . . . . . . Fabricator Hacks . | . . . . . . . . . . . . . . . . . . . . . . . Repair Station Hacks . | . . . . . . . . . . . . . . . . . . . . . . . Recycling Unit Hacks . | . . . . . . . . . . . . . . . . . . . . . . . Scanalyzer . | . . . . . . . . . . . . . . . . . . . . . . . Garrison Access Hacks . | . . . . . . . . . . . . . . . . . . . . . . . Unauthorized Hacks 10 | . 1 . . . . . . . 3 . . . . . . . . . . 6 . . Terminals 7 | . 1 . . . . . . . . . . . . . . . . . . 6 . . Operators 1 | . 1 . . . . . . . . . . . . . . . . . . . . . Sabotage 6 | . . . . . . . . . . . . . . . . . . . . 6 . . Fabricators . | . . . . . . . . . . . . . . . . . . . . . . . Repair Stations . | . . . . . . . . . . . . . . . . . . . . . . . Recycling Units 3 | . . . . . . . . . 3 . . . . . . . . . . . . . Tunnel 3 | . . . . . . . . . 3 . . . . . . . . . . . . . Scanalyzers . | . . . . . . . . . . . . . . . . . . . . . . . Garrison Access . | . . . . . . . . . . . . . . . . . . . . . . . Data Cores Recovered 4 | . . . . . . . . . . . . . . . . 2 1 . . . 1 . Used . | . . . . . . . . . . . . . . . . . . . . . . . Hacking Detections 11 | . 1 . 1 . . . . 2 . 2 . . . . . 2 2 . . . 1 . Full Trace Events 1 | . . . . . . . . . . . . . . . . 1 . . . . . . Feedback Events . | . . . . . . . . . . . . . . . . . . . . . . . Feedback Blocked . | . . . . . . . . . . . . . . . . . . . . . . . Robot Schematics Acquired . | . . . . . . . . . . . . . . . . . . . . . . . Robots Built . | . . . . . . . . . . . . . . . . . . . . . . . Authchips . | . . . . . . . . . . . . . . . . . . . . . . . Time . | . . . . . . . . . . . . . . . . . . . . . . . Total Robot Build Rating . | . . . . . . . . . . . . . . . . . . . . . . . Part Schematics Acquired . | . . . . . . . . . . . . . . . . . . . . . . . Parts Built . | . . . . . . . . . . . . . . . . . . . . . . . Authchips . | . . . . . . . . . . . . . . . . . . . . . . . Time . | . . . . . . . . . . . . . . . . . . . . . . . Total Part Build Rating . | . . . . . . . . . . . . . . . . . . . . . . . Part Studies Acquired . | . . . . . . . . . . . . . . . . . . . . . . . Parts Repaired . | . . . . . . . . . . . . . . . . . . . . . . . Time . | . . . . . . . . . . . . . . . . . . . . . . . Parts Recycled . | . . . . . . . . . . . . . . . . . . . . . . . Recycled Matter . | . . . . . . . . . . . . . . . . . . . . . . . Retrieved Matter . | . . . . . . . . . . . . . . . . . . . . . . . Retrieved Components . | . . . . . . . . . . . . . . . . . . . . . . . Parts Scanalyzed . | . . . . . . . . . . . . . . . . . . . . . . . Part Schematics Acquired . | . . . . . . . . . . . . . . . . . . . . . . . Parts Damaged . | . . . . . . . . . . . . . . . . . . . . . . . Bothacking | -11 -10 -10 -9 -9 -9 -8 -8 -8 -8 -6 -6 -6 -6 -6 -5 -5 -5 -5 -5 -5 -4 -4 ------------ Run | Yrd Mat Min Mat Min Exi Min Mat Sto Rec Fac Low Low Zio Dee Pro Fac Ext Cet Arc Hub Fac Arm Used RIF Installer . | . . . . . . . . . . . . . . . . . . . . . . . Robots Hacked . | . . . . . . . . . . . . . . . . . . . . . . . Non-combat . | . . . . . . . . . . . . . . . . . . . . . . . Combat . | . . . . . . . . . . . . . . . . . . . . . . . Robot Hacks Applied . | . . . . . . . . . . . . . . . . . . . . . . . Relay Couplers Released 4 | . . . . . . . . . . . . . . . . 4 . . . . . . Programmers 4 | . . . . . . . . . . . . . . . . 4 . . . . . . Fabnet Peak Effective % . | . . . . . . . . . . . . . . . . . . . . . . . Robots Rewired 34 | . . . . . . . . . 11 . . . . . . . 9 . . . . 14 Allies Hacked 6 | . . . . . . . . . . . . 1 . . . 3 . . . . . 2 Hacks Repelled 3 | . . . . . . . . . . . . . . . . . . . . . 2 1 Allies | -11 -10 -10 -9 -9 -9 -8 -8 -8 -8 -6 -6 -6 -6 -6 -5 -5 -5 -5 -5 -5 -4 -4 -------- Run | Yrd Mat Min Mat Min Exi Min Mat Sto Rec Fac Low Low Zio Dee Pro Fac Ext Cet Arc Hub Fac Arm Total Allies 58 | . . 3 . . . . . 2 11 . . . . . . 12 11 5 . . . 14 Largest Group 11 | . . 3 3 2 . . . 2 11 . . . . . . 8 7 10 9 6 1 7 Highest-Rated Group 754 | . . 40 40 32 . . . 62 150 . . . . . . 169 274 754 715 429 96 322 Highest-Rated Ally 159 | . . 16 16 16 . . . 31 21 . . . . . . 31 159 159 159 96 96 64 Total Orders 18 | . . . . . . . . 2 1 . . . . 4 2 2 2 5 . . . . STAY 2 | . . . . . . . . . . . . . . 1 . 1 . . . . . . ROAM 3 | . . . . . . . . . 1 . . . . 1 . . . 1 . . . . FOLLOW 9 | . . . . . . . . . . . . . . 2 1 1 2 3 . . . . AID 2 | . . . . . . . . . . . . . . . 1 . . 1 . . . . EXPLORE 2 | . . . . . . . . 2 . . . . . . . . . . . . . . Ally Attacks 1301 | . . 21 26 5 . . . 17 40 9 10 69 . 174 38 150 139 46 36 146 94 281 Total Damage 37050 | . . 213 329 29 . . . 214 525 223 248 2168 . 3636 1086 3706 2995 1648 1801 5400 4041 8788 Kills 241 | . . 3 3 1 . . . 2 7 3 1 9 . 22 12 25 26 10 5 42 28 42 Allies Corrupted 7 | . . . . . . . . . . . 1 1 . . . . . . . . 2 3 Allies Melted . | . . . . . . . . . . . . . . . . . . . . . . . Borg Created 46 | . . . . . . . . . . 8 3 2 . 4 4 4 3 . . 1 3 14 Largest Collective 5 | . . . . . . . . . . 2 2 4 . 5 4 5 4 . . 3 3 5 Intel | -11 -10 -10 -9 -9 -9 -8 -8 -8 -8 -6 -6 -6 -6 -6 -5 -5 -5 -5 -5 -5 -4 -4 ------- Run | Yrd Mat Min Mat Min Exi Min Mat Sto Rec Fac Low Low Zio Dee Pro Fac Ext Cet Arc Hub Fac Arm Active Infowar (turns) 110 | . . . . . . . . . . . . . 110 . . . . . . . . . IFF 110 | . . . . . . . . . . . . . 110 . . . . . . . . . Robot Analysis Total 1 | . . . 1 . . . . . . . . . . . . . . . . . . . Derelict Logs Recovered 5 | . . 1 . . . . . . . . 1 . 2 . 1 . . . . . . . Drone Launches 4 | . . . . . . . . 4 . . . . . . . . . . . . . . Drone Recoveries . | . . . . . . . . . . . . . . . . . . . . . . . Exploration | -11 -10 -10 -9 -9 -9 -8 -8 -8 -8 -6 -6 -6 -6 -6 -5 -5 -5 -5 -5 -5 -4 -4 ------------- Run | Yrd Mat Min Mat Min Exi Min Mat Sto Rec Fac Low Low Zio Dee Pro Fac Ext Cet Arc Hub Fac Arm Turns Passed 19432 | 75 1492 585 165 136 545 646 539 1411 998 1137 673 490 1603 1527 880 1761 1662 630 108 336 1020 1013 Spaces Moved 8501 | 44 591 172 55 45 226 268 212 419 324 420 348 219 827 641 328 729 899 181 37 249 715 552 Core 4 | 4 . . . . . . . . . . . . . . . . . . . . . . Treads 1534 | 40 591 172 55 45 226 268 137 . . . . . . . . . . . . . . . Legs 6724 | . . . . . . . . 255 324 420 348 219 827 641 328 729 899 181 37 249 715 552 Wheels 239 | . . . . . . . 75 164 . . . . . . . . . . . . . . Hover . | . . . . . . . . . . . . . . . . . . . . . . . Flight . | . . . . . . . . . . . . . . . . . . . . . . . Fastest Speed 50 | 50 160 320 240 240 240 240 140 155 190 120 120 120 120 120 133 125 120 120 120 120 120 120 Average Speed 175 | 150 234 320 240 240 240 240 216 177 191 184 171 188 177 166 201 197 127 120 120 120 120 120 Slowest Speed 610 | 160 320 320 240 240 240 240 490 610 470 190 190 190 190 330 203 200 195 120 120 120 186 120 Overloaded Moves . | . . . . . . . . . . . . . . . . . . . . . . . Propulsion Burnouts . | . . . . . . . . . . . . . . . . . . . . . . . Robots Hopped . | . . . . . . . . . . . . . . . . . . . . . . . Potential Cave-ins . | . . . . . . . . . . . . . . . . . . . . . . . Cave-ins Triggered . | . . . . . . . . . . . . . . . . . . . . . . . Exploration Rate (%) 48 | 3 90 34 8 15 61 72 23 70 57 14 52 46 76 70 70 23 97 66 73 45 19 36 Regions Visited 22 Branch Regions 16 Pre-discovered Areas 5 | . . . . . . . . . 3 . . . 1 . 1 . . . . . . . Known Exits Taken 7 | . . . 1 . . . 1 . . . 1 . 1 . 1 1 . . . . 1 . Unknown Exits Taken 15 | 1 1 1 . 1 1 1 . 1 1 1 . 1 . 1 . . 1 1 1 1 . . Scrap Searched 6 | . . . . 1 . . . . . . 1 1 2 . 1 . . . . . . . Spaces Dug 5 | . . . . . . . . 5 . . . . . . . . . . . . . . Terrain Destroyed 86 | . . . . . . 11 43 28 4 . . . . . . . . . . . . . Melee . | . . . . . . . . . . . . . . . . . . . . . . . Projectile 77 | . . . . . . 11 43 19 4 . . . . . . . . . . . . . AOE 9 | . . . . . . . . 9 . . . . . . . . . . . . . . Terrain Rammed . | . . . . . . . . . . . . . . . . . . . . . . . Walls Destroyed . | . . . . . . . . . . . . . . . . . . . . . . . Machines Disabled . | . . . . . . . . . . . . . . . . . . . . . . . Actions | -11 -10 -10 -9 -9 -9 -8 -8 -8 -8 -6 -6 -6 -6 -6 -5 -5 -5 -5 -5 -5 -4 -4 --------- Run | Yrd Mat Min Mat Min Exi Min Mat Sto Rec Fac Low Low Zio Dee Pro Fac Ext Cet Arc Hub Fac Arm Total 12685 | 50 652 196 79 63 230 269 276 992 682 768 425 294 903 1093 545 1036 1412 597 100 284 861 878 Wait 3264 | . 18 19 16 13 . . 20 483 212 293 61 54 29 415 205 285 401 398 64 35 106 137 Move 8479 | 43 590 171 54 44 225 267 211 418 323 419 347 218 826 640 327 728 898 180 36 248 714 552 Hop . | . . . . . . . . . . . . . . . . . . . . . . . Pick Up 80 | 1 13 . 2 . 2 . 16 7 2 2 1 3 4 1 . 7 5 6 . . 6 2 Fast Attach 63 | 6 1 . . 1 1 . 4 6 1 3 1 1 7 4 . 6 8 3 . . 8 2 Attach 44 | . 2 . 2 . . . 2 4 1 7 3 3 2 8 3 . 3 1 . . 3 . Detach 11 | . . . . . . . . 1 . . 1 1 1 3 3 . 1 . . . . . Swap 23 | . 2 . . . . . . 2 . 1 . . 2 5 . . 2 . . . 4 5 Drop 83 | . 3 . . . 2 . 6 11 4 8 2 1 5 6 . . 9 9 . . 10 7 Fire 129 | . 23 6 5 5 . . 16 40 15 16 . . . 3 . . . . . . . . Melee 7 | . . . . . . . . . . . 1 3 . . 3 . . . . . . . Ram 1 | . . . . . . . 1 . . . . . . . . . . . . . . . Kick 20 | . . . . . . . . . 2 9 3 . . 3 . 2 . . . . . 1 Crush 2 | . . . . . . 2 . . . . . . . . . . . . . . . . Escape Stasis . | . . . . . . . . . . . . . . . . . . . . . . . Rewire 376 | . . . . . . . . 1 122 2 2 7 . . . . 82 . . . 2 158 Trap 4 | . . . . . . . . . . . . . . . . 4 . . . . . . Miscellaneous 99 | . . . . . . . . 19 . 8 3 3 27 5 4 4 3 . . 1 8 14 Route ------- -11/Scrapyard -10/Materials (discovered 4 exits: *Mat x3 / [*Min]) -10/Mines -9/Materials (discovered 2 exits: *Min x2) -9/Mines -9/Exiles -8/Mines -8/Materials (discovered 2 exits: [*Fac] / *Sto) -8/Storage (discovered 2 exits: [*Fac] / *Rec) -8/Recycling -6/Factory (discovered 2 exits: *Fac / *Low) -6/Lower Caves -6/Lower Caves -6/Zion -6/Deep Caves -5/Proximity Caves -5/Factory (discovered 4 exits: Upp x2 / *Ext x2) -5/Extension (discovered 3 exits: *Fac x2 / *Cet) -5/Cetus (discovered 3 exits: *Fac x2 / [*Arc]) -5/Archives -5/Hub_04(d) -4/Factory (discovered 4 exits: [*Res] / Upp x2 / *Arm) -4/Armory History --------- Turn | Location | Event 13 | -11/Scrapyard | Discovered new exit (range 14) 76 | -11/Scrapyard | Entered Materials 143 | -10/Materials | Discovered new exit (range 16) 300 | -10/Materials | Build established: Mutant 597 | -10/Materials | Discovered new exit (range 5) 962 | -10/Materials | Discovered new exit (range 11) 1459 | -10/Materials | Discovered new exit (range 15) 1568 | -10/Materials | Entered Mines 1591 | -10/Mines | Assisted by bots powering up and referring to "LRC-V3" 1692 | -10/Mines | Discovered new exit (range 15) 1957 | -10/Mines | Learned Materials terminal intel 2153 | -10/Mines | Entered Materials 2153 | -9/Materials | Accompanied by 3 allies 2153 | -9/Materials | Evolved 2 slots: Propulsion x1, Utility x1 2154 | -9/Materials | Loaded intel: 12 terminal locations 2199 | -9/Materials | Discovered new exit (range 15) 2251 | -9/Materials | Identified exit to Mines 2318 | -9/Materials | Entered Mines 2318 | -9/Mines | Accompanied by 2 allies 2319 | -9/Mines | Assembled infested the area 2373 | -9/Mines | Met 8R-AWN 2444 | -9/Mines | Discovered new exit (range 5) 2454 | -9/Mines | Entered Exiles 2514 | -9/Exiles | Welcomed by 8R-AWN 2555 | -9/Exiles | Met EX-HEX 2620 | -9/Exiles | Met EX-BIN 2649 | -9/Exiles | Aligned with FarCom system 2651 | -9/Exiles | Given EX-Vault access code 2721 | -9/Exiles | Opened EX-Vault 2739 | -9/Exiles | Found AWS/Gauss 2745 | -9/Exiles | Found Trap Reconfigurator 2753 | -9/Exiles | Found Chronowheel 2805 | -9/Exiles | Warned to stay clear of 0b10 Research branches 2889 | -9/Exiles | Met EX-DEC 2973 | -9/Exiles | Discovered new exit (range 14) 2999 | -9/Exiles | Stole three prototypes: AWS/Gauss, Trap Reconfigurator, Chronowheel 2999 | -9/Exiles | Entered Mines 3623 | -8/Mines | Discovered new exit (range 6) 3645 | -8/Mines | Entered Materials 3645 | -8/Materials | Evolved 2 slots: Propulsion x1, Weapon x1 3694 | -8/Materials | Identified exit to Storage 3884 | -8/Materials | Destroyed 7 combat bots 4022 | -8/Materials | Discovered new exit (range 8) 4024 | -8/Materials | Lost 3 parts (1p2n) 4184 | -8/Materials | Entered Storage 4186 | -8/Storage | FarCom data flow suspended 4293 | -8/Storage | Met a pair of Derelict thieves 4493 | -8/Storage | Build established: Scavenger-Gunner 5074 | -8/Storage | Discovered new exit (range 16) 5233 | -8/Storage | Build established: Gunner 5587 | -8/Storage | Used back door to open Recycling access 5587 | -8/Storage | Discovered new exit (range 5) 5595 | -8/Storage | Entered Recycling 6229 | -8/Recycling | Build established: Commander-Mutant 6475 | -8/Recycling | Discovered new exit (range 14) 6588 | -8/Recycling | Core integrity fell below 50% 6593 | -8/Recycling | Entered Factory 6593 | -6/Factory | Evolved 4 slots: Power x1, Propulsion x1, Weapon x2 6605 | -6/Factory | Found Prototype Special Melee Weapon 6605 | -6/Factory | Identified 1B-0RG's Assimilator 6624 | -6/Factory | Lost 6 parts (1p4n1w) 6668 | -6/Factory | Discovered new exit (range 15) 6705 | -6/Factory | Assimilating Guardian 5a into Collective. 6746 | -6/Factory | Build established: Mutant 6790 | -6/Factory | Assimilating Virus 5a into Collective. 6791 | -6/Factory | Assimilating Virus 5b into Collective. 6798 | -6/Factory | Assimilating Virus 5c into Collective. 6919 | -6/Factory | Assimilating Virus 5d into Collective. 7090 | -6/Factory | Assimilating Hacker 5a into Collective. 7297 | -6/Factory | Spotted B-75 Beast 7331 | -6/Factory | Assimilating Beast 5a into Collective. 7658 | -6/Factory | Assimilating Informer 5a into Collective. 7674 | -6/Factory | Discovered new exit (range 18) 7730 | -6/Factory | Entered Lower Caves 7730 | -6/Lower Caves | Accompanied by 1 ally 7731 | -6/Lower Caves | Chronowheel stolen by Master Thief 7732 | -6/Lower Caves | Encountered a Master Thief 7876 | -6/Lower Caves | Assimilating Slayer 5a into Collective. 7900 | -6/Lower Caves | Assimilating Hacker 5b into Collective. 8033 | -6/Lower Caves | Attacked by a delusional Derelict stockpiling parts 8143 | -6/Lower Caves | Assimilating 0S-0SV(r) into Collective. 8291 | -6/Lower Caves | Identified exit to Lower Caves 8403 | -6/Lower Caves | Entered another Lower Caves area 8403 | -6/Lower Caves | Accompanied by 2 allies 8403 | -6/Lower Caves | Assimilating Soldier 5a into Collective. 8406 | -6/Lower Caves | Borg Hacker 5b assimilated hostile G-50 Soldier 8467 | -6/Lower Caves | Assimilating Fighter 5a into Collective. 8500 | -6/Lower Caves | Attracted the attention of an 0b10 checkpoint 8615 | -6/Lower Caves | Spotted B-75 Beast 8636 | -6/Lower Caves | Allies destroyed B-75 Beast 8805 | -6/Lower Caves | Encountered a Master Thief 8806 | -6/Lower Caves | Encountered a Master Thief 8807 | -6/Lower Caves | Trap Reconfigurator stolen by Master Thief 8812 | -6/Lower Caves | Encountered a Master Thief 8813 | -6/Lower Caves | Fission Core stolen by Master Thief 8815 | -6/Lower Caves | Hrd. Heavy Armor Plating stolen by Master Thief 8874 | -6/Lower Caves | Discovered new exit (range 7) 8893 | -6/Lower Caves | Entered Zion 8893 | -6/Zion | Accompanied by 4 allies 9009 | -6/Zion | System corruption cleaned by Quarantine Array 9162 | -6/Zion | Found Prototype Energy Gun 9259 | -6/Zion | Found Prototype Processor 9259 | -6/Zion | Identified Exp. Target Analyzer 9263 | -6/Zion | Found Prototype Processor 9263 | -6/Zion | Identified Exp. Melee Analysis Suite 9274 | -6/Zion | Found Prototype Processor 9274 | -6/Zion | Identified Exp. Signal Interpreter 9522 | -6/Zion | Learned Factory recycling unit intel 9620 | -6/Zion | Build established: Scavenger-Mutant 9711 | -6/Zion | Learned location of Extension (-5) 10305 | -6/Zion | Found Prototype Device 10348 | -6/Zion | Identified Mobile Refinery Mk. CCLXVII 10463 | -6/Zion | Discovered new exit (range 5) 10466 | -6/Zion | Saw the warning signs outside the Deep Caves entrance 10491 | -6/Zion | Identified exit to Deep Caves 10496 | -6/Zion | Entered Deep Caves 10496 | -6/Deep Caves | Accompanied by 4 allies 10810 | -6/Deep Caves | Attacked by Z-Imprinter 10827 | -6/Deep Caves | Assimilating V3-HGR(z) into Collective. 10833 | -6/Deep Caves | Allies destroyed Z-Imprinter 11307 | -6/Deep Caves | Found Prototype Protection 11307 | -6/Deep Caves | Identified Zio. Weapon Casing 11531 | -6/Deep Caves | Spotted AG-70102 11560 | -6/Deep Caves | Identified Storm Laser 11575 | -6/Deep Caves | Core integrity fell below 50% 11604 | -6/Deep Caves | Exposed GOLEM chamber 11605 | -6/Deep Caves | Triggered Deep Caves wall 11623 | -6/Deep Caves | Lost 6 parts (1p4n1u) 11842 | -6/Deep Caves | Assimilating as-43640 into Collective. 11851 | -6/Deep Caves | Assimilating as-22123 into Collective. 11854 | -6/Deep Caves | Assimilating as-70138 into Collective. 12010 | -6/Deep Caves | Discovered new exit (range 6) 12023 | -6/Deep Caves | Entered Proximity Caves 12023 | -5/Proximity Caves | Accompanied by 2 allies 12180 | -5/Proximity Caves | Core integrity fell below 20% 12183 | -5/Proximity Caves | Assimilating Virus 6a into Collective. 12184 | -5/Proximity Caves | Assimilating Virus 6b into Collective. 12189 | -5/Proximity Caves | Assimilating Virus 6c into Collective. 12491 | -5/Proximity Caves | Build established: Mutant 12722 | -5/Proximity Caves | Assimilating Extractor 6a into Collective. 12882 | -5/Proximity Caves | Discovered new exit (range 11) 12900 | -5/Proximity Caves | Identified exit to Factory 12903 | -5/Proximity Caves | Entered Factory 12903 | -5/Factory | Accompanied by 3 allies 12903 | -5/Factory | Evolved 2 slots: Propulsion x1, Utility x1 12904 | -5/Factory | Loaded intel: 8 recycling unit locations 13057 | -5/Factory | Identified exit to Upper Caves 13057 | -5/Factory | Identified exit to Extension 13086 | -5/Factory | Assimilating Slayer 6a into Collective. 13528 | -5/Factory | Assimilating Serf 6a into Collective. 13619 | -5/Factory | Assimilating Sage 6a into Collective. 13641 | -5/Factory | Lost 3 allies 14251 | -5/Factory | Build established: Scavenger-Mutant 14373 | -5/Factory | Assimilating Sage 6b into Collective. 14664 | -5/Factory | Entered Extension 14664 | -5/Extension | Accompanied by 3 allies 14961 | -5/Extension | Rescued a captive Derelict 14988 | -5/Extension | Found Imp. Powered Armor 15454 | -5/Extension | Spotted B-75 Beast 15460 | -5/Extension | Spotted B-75 Beast 15470 | -5/Extension | Assimilating Beast 6a into Collective. 15471 | -5/Extension | Discovered new exit (range 9) 15481 | -5/Extension | Assimilating Beast 6b into Collective. 15936 | -5/Extension | Lost 3 allies 16016 | -5/Extension | Assimilating Sentinel 6a into Collective. 16051 | -5/Extension | Rescued A7 16132 | -5/Extension | Discovered new exit (range 10) 16133 | -5/Extension | Discovered new exit (range 6) 16326 | -5/Extension | Entered Cetus 16326 | -5/Cetus | Accompanied by 9 allies (A7) 16331 | -5/Cetus | Acquired a Cetus Manufacturing Module code from A7 16363 | -5/Cetus | Spotted Cetus Guard 16377 | -5/Cetus | Allies destroyed Cetus Guard 16378 | -5/Cetus | Allies destroyed Cetus Guard 16380 | -5/Cetus | Allies destroyed Cetus Guard 16537 | -5/Cetus | Started Cetus Manufacturing Module 16553 | -5/Cetus | Discovered new exit (range 49) 16562 | -5/Cetus | Manufactured an Enhanced Grunt 16587 | -5/Cetus | Manufactured an Enhanced Grunt 16612 | -5/Cetus | Manufactured an Enhanced Grunt 16637 | -5/Cetus | Manufactured an Enhanced Grunt 16662 | -5/Cetus | Manufactured an Enhanced Grunt 16693 | -5/Cetus | Discovered new exit (range 28) 16826 | -5/Cetus | Spotted Cetus Guard 16826 | -5/Cetus | Spotted Cetus Guard 16830 | -5/Cetus | Spotted Cetus Guard 16830 | -5/Cetus | Allies destroyed Cetus Guard 16835 | -5/Cetus | Allies destroyed Cetus Guard 16835 | -5/Cetus | Spotted Cetus Guard 16838 | -5/Cetus | Allies destroyed Cetus Guard 16840 | -5/Cetus | Allies destroyed Cetus Guard 16860 | -5/Cetus | Discovered new exit (range 15) 16866 | -5/Cetus | Met Revision 17 16897 | -5/Cetus | Build established: Commander-Mutant 16956 | -5/Cetus | Entered Archives 16956 | -5/Archives | Accompanied by 12 allies (A7) 17015 | -5/Archives | Lost 3 allies 17018 | -5/Archives | Discovered new exit (range 16) 17064 | -5/Archives | Entered Hub_04(d) 17064 | -5/Hub_04(d) | Accompanied by 8 allies 17073 | -5/Hub_04(d) | Network Hub disabled 17083 | -5/Hub_04(d) | Network Hub disabled 17088 | -5/Hub_04(d) | Network Hub disabled 17147 | -5/Hub_04(d) | Assimilating Soldier 6a into Collective. 17216 | -5/Hub_04(d) | Garrison activated, responded to threat 17266 | -5/Hub_04(d) | Network Hub disabled 17364 | -5/Hub_04(d) | First assault squad dispatched 17366 | -5/Hub_04(d) | Discovered new exit (range 15) 17391 | -5/Hub_04(d) | Spotted B-75 Beast 17400 | -5/Hub_04(d) | Entered Factory 17400 | -4/Factory | Accompanied by 4 allies 17400 | -4/Factory | Evolved 2 slots: Utility x2 17430 | -4/Factory | Build established: Scavenger-Mutant 17551 | -4/Factory | Identified exit to Upper Caves 17551 | -4/Factory | Identified exit to Armory 17615 | -4/Factory | Unchained authorized (1B-0RG) 17663 | -4/Factory | Assimilating Sentinel 7a into Collective. 18036 | -4/Factory | Discovered new exit (range 7) 18115 | -4/Factory | Assimilating Disruptor 7a into Collective. 18157 | -4/Factory | Assimilating Assassin 7a into Collective. 18331 | -4/Factory | Build established: Hacker-Mutant 18400 | -4/Factory | First assault squad dispatched 18420 | -4/Factory | Entered Armory 18420 | -4/Armory | Accompanied by 2 allies 18444 | -4/Armory | Assimilating Administrator 7a into Collective. 18670 | -4/Armory | First assault squad dispatched 18671 | -4/Armory | Assimilating Sentinel 7b into Collective. 18703 | -4/Armory | Assimilating Sage 7a into Collective. 18715 | -4/Armory | Assimilating Sage 7b into Collective. 18877 | -4/Armory | Assimilating Disruptor 7b into Collective. 18974 | -4/Armory | Assimilating Sage 7c into Collective. 19088 | -4/Armory | Lost 5 allies 19247 | -4/Armory | Assimilating Assassin 7d into Collective. 19281 | -4/Armory | Assimilating Beamer 7b into Collective. 19284 | -4/Armory | Assimilating Enforcer 7a into Collective. 19289 | -4/Armory | Assimilating Veteran 7f into Collective. 19327 | -4/Armory | Assimilating Assassin 7e into Collective. 19354 | -4/Armory | Lost 12 allies 19398 | -4/Armory | Assimilating Swordsman 7e into Collective. 19402 | -4/Armory | Assimilating Swordsman 7f into Collective. 19427 | -4/Armory | Assimilating Warden 7a into Collective. 19433 | -4/Armory | Self-destructed Last Messages --------------- (-14). 19421_ Acquired 24 matter. 19427_ Slug penetrates Wall. 19427_ 1B-0RG's Assimilator injects Warden 7a to begin assimilation process, ETC: 26. 19428_ C-45 Heavy ARC bursts open, deploying its payload. 19428_ G-73 Enforcer unfolds itself. 19428_ G-67 Veteran unfolds itself. 19428_ M-36 Artificer unfolds itself. 19430_ Acquired 73 matter. 19430_ Borg Warden 7a destroyed. 19430_ Core damaged by loss of Borg Warden 7a (-16). 19430_ Centrium Medium Armor Plating destroyed. 19430_ Borg Enforcer 7a suffers critical hit (Burn). 19431_ G-67 Veteran suffers critical hit (Burn). 19431_ Component Storage disabled. 19431_ Mic. Fission Core destroyed. Map ----- +----------------------------------------------------+ | ?????????????????????????????????????????????????? | | ?????????????????????????????????????????????????? | | ?????????????????????????????????????????????????? | | ?????????????????????????????????????????????????? | | ?????????????????????????????????????????????????? | | ?????????????????????????????????????????????????? | | ?????????????????????????????????????????????????? | | ?????????????????????????????????????????????????? | | ?????????????????????????????????????????????????? | | ?????????????????????????????????????????????????? | | ?????????????????????????????????????????????????? | | ?????????????????????????????????????????????????? | | ?????????????????????????????????????????????????? | | ??????????????????######+##??????????????????????? | | ??????????????????? #??????????????????????? | | ?????????????????? #??????????????????????? | | ????????????# ???? ??????????????????????? | | ????????????# ?""""" #??????????????????????? | | ????????????# """"" m#??????????????????????? | | ????????????# """" #??????????????????????? | | ????????????# ^ #??????????????????????? | | ????????????# #??????????????????????? | | ????????????# == #??????#???????????????? | | ??????????### == #####Y # #???????????? | | ????????? == !gg Y= /x[ +???????????? | | ????????? =!@%pg g Y/ +???????????? | | ????????????# ![=/#####! # #???????????? | | ????????????########### = #??????????????????????? | | ??????????????????????#|=h#??????????????????????? | | ??????????????????????# [##########?????????????? | | ??????????????????????#=**= #?????????????? | | ??????????????????????#g! #??????????? | | ??????????????????????#= ######## #??????????? | | ??????????????????????# #??????# #??????????? | | ??????????????????????# ###????# #?????????????? | | ??????????????????????# # ????# #?????????????? | | ??????????????????????# # """" # ##????????????? | | ??????????????????????# # # ????????????? | | ??????????????????????# # # ?????????????? | | ??????????????????????# + """" # #?????????????? | | ??????????????????????# # # !#?????????? ? | | ?????????????????????## ########=%#?????????] | | ?????????????????????# #######%!#######? ]] | | ?????????????????????# = =[== # ]] | | ??????????############ = *=*[* " ]] | | ??????????# # # # ### # ]] | | ??????????# ## ##!![*[%*[ # ]] | | ??????????# " ## ## =% %=/= " | | ??????????# "" ## ##!! ] ####### | | ??????????# "" ## ##[= ! # #????####### | +----------------------------------------------------+ Best States ------------- Heat Dissipation 64 Energy Generation 45 Energy Capacity 600 Matter Stores 300 Matter Capacity 300 Sight Range 16 Terrain Scan Density 10 Armor Coverage 600 Propulsion Shielding 66 Utility Shielding 66 Weapon Shielding 100 Phase Shifting 5 Evasion (%) 70 Targeting Accuracy 5 Melee Accuracy 12 Recoil Reduction 4 Offensive Hacking 10 Defensive Hacking 26 Item Schematics ----------------- None Robot Schematics ------------------ None Fabricated ------------ Nothing Repaired ---------- Nothing Studied --------- None Alien Tech Used ----------------- None Achievements -------------- About That Survey... Challenges ------------ None Game ------ Seed PhysicsGatlingCasing Manual? 0 Play Time 01:28:10 Cumulative 601.1 hours Start 2026.01.20 @ 20:14:01 End 2026.04.05 @ 16:16:23 Sessions 5 Manual Loads 0 Difficulty Rogue Special Mode None Game No. 926 Rogue 771 Adventurer 148 Explorer 7 Win Type - Total 29 Types 21/1/4/1/0/0/1/0/0/1 Lore% 82 Gallery% 82 Achievement% 74 Wizard Run 0 Options --------- Layout 1 ASCII 0 Keyboard 0 Movement Numpad Keybinds 0 Fullscreen 2 Font 24/Smallcaps Map View 50x40 Zoom Use 0% Tactical HUD 1 Map Filters NONE Filters NONE Steam 1 RUN: c331b32e-d74d-4cc0-92b6-6f90387b0fb5